Cogmind - Beta 11 X9 @@@ ROGUE MODE // 2022.01.19 @ 18:54:13 Player: LU-1G1 Result: Escaped! Performance ------------- Evolutions (9) 4500 Regions Visited (23) 4600 Robots Destroyed (170) 850 Value Destroyed (4137) 4137 Prototype IDs (40) 800 Alien Tech Used (0) 0 Bonus (5361) 5361 TOTAL SCORE: 20248 Bonus ------- High Alert Combat Kills 65 Follower Combat Kills 1300 Entered Garrisons 200 Used RIF Installer 500 Entered DSFs 1000 Aligned with FarCom 300 Built Enhanced Grunts 300 A7 Reached Mainframe 300 Win 3000 Friendly Fire -1604 Cogmind --------- Core Integrity 1600/1600 Matter 290/300 Energy 426/430 System Corruption 0% Temperature Cool (8) Movement Flying (33) Location To Epsilon Eridani Parts ------- > --- POWER (2) -------- Light Particle Reactor Reinforced Quantum Reactor > --- PROPULSION (10) -- Biomechanical Wings Field Propulsion Drive Flying Fortress v7 Impulse Thruster Array Impulse Thruster Array > --- UTILITY (9) ------ Advanced Heat Sink Large Storage Unit Enhanced Optical Array Advanced Melee Analysis Suite Advanced Melee Analysis Suite Improved Maneuvering Thrusters Layered Light Armor Plating Improved Hacking Suite Improved Hacking Suite > --- WEAPON (4) ------- Gamma Rifle Railgun Power Sword > --- INVENTORY (15) --- Advanced Heat Sink Experimental Heat Sink Advanced Energy Well (500) High-capacity Matter Pod (200) Compact Matter Pod (85) Advanced Signal Interpreter Improved Propulsion Shielding Improved Propulsion Shielding Layered Light Armor Plating Advanced Shield Generator HERF Cannon HERF Cannon Advanced Datajack Peak State ------------ > --- POWER ------------ Light Particle Reactor Reinforced Quantum Reactor > --- PROPULSION ------- Biomechanical Wings Field Propulsion Drive Flying Fortress v7 Impulse Thruster Array Impulse Thruster Array > --- UTILITY ---------- Advanced Heat Sink Large Storage Unit Enhanced Optical Array Advanced Melee Analysis Suite Advanced Melee Analysis Suite Improved Maneuvering Thrusters Layered Light Armor Plating Improved Hacking Suite Improved Hacking Suite > --- WEAPON ----------- Gamma Rifle Railgun Power Sword > --- INVENTORY -------- Advanced Heat Sink Experimental Heat Sink Advanced Energy Well High-capacity Matter Pod Compact Matter Pod Advanced Signal Interpreter Improved Propulsion Shielding Improved Propulsion Shielding Layered Light Armor Plating Advanced Shield Generator HERF Cannon HERF Cannon Advanced Datajack [Rating: 160] Favorites ----------- Power Heavy Ion Engine Engine Heavy Ion Engine Power Core Micro Fission Core Reactor Particle Reactor Propulsion Light Treads Treads Light Treads Leg Aluminum Leg Wheel Compact Wheel Flight Unit Field Propulsion Drive Utility Visual Processing Unit Device Experimental Heat Sink Storage Large Storage Unit Processor Visual Processing Unit Hackware Improved Hacking Suite Protection Medium Reflective Plating Weapon Improved Assault Rifle Energy Gun Improved Medium Laser Energy Cannon Advanced Beam Cannon Ballistic Gun Improved Assault Rifle Launcher Mini Grenade Launcher Special Weapon Improved Plasma Cutter Impact Weapon Heavy Flail Slashing Weapon Power Sword Build | -11 -10 -10 -9 -9 -9 -8 -8 -8 -8 -6 -6 -6 -5 -5 -5 -5 -5 -4 -4 -3 -3 -2 -1 ------- Run | Scr Mat Min Mat Min Exi Min Mat Sto Rec Fac DSF Gar Fac Ext Cet Arc Hub Fac Arm Res DSF Res Acc Slots Evolved 18 | . . . 2 . . . 2 . . 4 . . 2 . . . . 2 . 2 . 2 2 Power 1 | . . . . . . . . . . . . . 1 . . . . . . . . . . Propulsion 8 | . . . 1 . . . 1 . . 2 . . . . . . . 1 . 1 . . 2 Utility 7 | . . . 1 . . . 1 . . 2 . . 1 . . . . 1 . 1 . . . Weapon 2 | . . . . . . . . . . . . . . . . . . . . . . 2 . Parts Attached 183 | 7 6 4 32 . 1 2 24 1 . 6 4 1 13 10 4 13 1 16 10 . 11 10 7 Power 25 | 1 . 2 4 . . 1 2 . . 1 . . 2 5 1 . . . 2 . 2 . 2 Engine 7 | 1 . 2 4 . . . . . . . . . . . . . . . . . . . . Core 14 | . . . . . . 1 2 . . 1 . . 2 5 1 . . . 2 . . . . Reactor 4 | . . . . . . . . . . . . . . . . . . . . . 2 . 2 Propulsion 50 | 2 1 1 12 . . 1 10 . . 2 2 . . . . . . 8 3 . 2 5 1 Treads 17 | 2 1 1 9 . . . 4 . . . . . . . . . . . . . . . . Leg 4 | . . . 3 . . . 1 . . . . . . . . . . . . . . . . Wheel 5 | . . . . . . 1 4 . . . . . . . . . . . . . . . . Hover . | . . . . . . . . . . . . . . . . . . . . . . . . Flight 24 | . . . . . . . 1 . . 2 2 . . . . . . 8 3 . 2 5 1 Utility 62 | 2 2 . 4 . 1 . 7 . . 2 2 1 10 2 . 11 1 6 3 . 3 3 2 Device 17 | 1 . . 1 . . . 1 . . 1 . . 2 . . 2 . 3 2 . 2 1 1 Storage 7 | 1 1 . 1 . 1 . 1 . . . . . . . . 1 . . . . . . 1 Processor 5 | . 1 . . . . . 1 . . . . . . . . . 1 . . . . 2 . Hackware 14 | . . . . . . . . . . . . 1 4 . . 7 . 2 . . . . . Protection 19 | . . . 2 . . . 4 . . 1 2 . 4 2 . 1 . 1 1 . 1 . . Artifact . | . . . . . . . . . . . . . . . . . . . . . . . . Weapon 46 | 2 3 1 12 . . . 5 1 . 1 . . 1 3 3 2 . 2 2 . 4 2 2 Energy Gun 5 | . . . 3 . . . 1 . . . . . . . . . . . . . . . 1 Energy Cannon 3 | . 1 1 1 . . . . . . . . . . . . . . . . . . . . Ballistic Gun 18 | 2 2 . 7 . . . 4 1 . . . . . 1 . . . . . . . 1 . Ballistic Cannon . | . . . . . . . . . . . . . . . . . . . . . . . . Launcher 8 | . . . 1 . . . . . . 1 . . 1 1 1 . . 1 2 . . . . Special Weapon 2 | . . . . . . . . . . . . . . . . . . . . . 1 1 . Impact Weapon 5 | . . . . . . . . . . . . . . 1 1 1 . . . . 2 . . Slashing Weapon 5 | . . . . . . . . . . . . . . . 1 1 . 1 . . 1 . 1 Piercing Weapon . | . . . . . . . . . . . . . . . . . . . . . . . . Special Melee Weapon . | . . . . . . . . . . . . . . . . . . . . . . . . Unidentified Prototypes 12 | . 1 . 4 . . . 1 . . . . . 1 . . 1 . 1 . . . 1 2 Corrupted Parts 1 | . . . . . . . . . . . . . . 1 . . . . . . . . . System Corruption 8 | . . . . . . . . . . . . . . 8 . . . . . . . . . Parts Lost 43 | . . 1 7 . . 1 15 . . . . 1 2 1 1 . . . 5 . 3 6 . Power 9 | . . 1 1 . . 1 2 . . . . . . . . . . . 2 . . 2 . Propulsion 12 | . . . 5 . . . 5 . . . . . . . . . . . . . 1 1 . Utility 15 | . . . 1 . . . 5 . . . . 1 1 1 1 . . . 2 . 1 2 . Weapon 7 | . . . . . . . 3 . . . . . 1 . . . . . 1 . 1 1 . Highest Loss Streak 9 | . . 1 2 . . 1 9 . . . . 1 2 1 1 . . . 2 . 5 6 . Average Slot Usage (%) 85 | . 99 100 93 100 90 87 79 67 72 80 80 78 78 71 65 71 82 86 85 71 76 76 63 Engine 6 | . 14 14 10 11 11 9 . . . . . . . . . . . . . . . . . Core 4 | . . . . . . . 7 9 9 6 6 6 11 11 10 11 11 10 9 4 4 3 . Treads 18 | . 28 28 26 33 33 32 22 . . . . . . . . . . . . . . . . Wheel 1 | . . . . . . . 10 . . . . . . . . . . . . . . . . Flight 6 | . . . . . . . . 9 9 20 20 20 17 17 17 17 17 24 26 23 26 22 20 Device 2 | . 9 . 1 . . . . . . 6 6 4 2 5 5 6 . 4 9 14 11 8 4 Storage 10 | . 14 14 15 22 13 11 8 9 9 6 6 6 5 5 5 5 5 5 5 4 4 4 4 Processor 9 | . 4 14 11 11 11 11 9 9 9 6 6 6 5 5 5 5 5 5 5 4 4 11 12 Hackware 3 | . . . . . . . . . . . . . 14 . . 7 29 25 15 14 14 8 8 Protection 4 | . . . 4 . . . 4 18 18 20 20 20 8 14 13 8 . . 2 . 1 4 4 Energy Cannon 1 | . . 9 2 . . . . . . . . . . . . . . . . . . . . Ballistic Gun 13 | . 27 18 15 22 22 22 15 13 18 7 6 6 5 2 . . . . . . . 1 4 Naked Turns . | . . . . . . . . . . . . . . . . . . . . . . . . Heaviest Build 216 | 11 25 32 41 35 214 214 216 41 41 51 51 50 62 69 67 52 41 43 50 33 56 59 86 Greatest Support 95 | 40 40 40 60 60 60 60 50 50 50 59 64 64 64 64 64 64 64 64 51 49 56 62 95 Greatest Overweight (x) 21 | . . . 11 . 3 13 21 . . . . . . 19 1 . . 1 1 . . 1 . Average Overweight (x) . | . . . . . 1 3 8 . . . . . . . . . . . . . . . . Largest Inventory Capacity 35 | 8 15 15 15 15 35 35 35 15 15 15 15 15 15 15 15 15 15 15 15 15 15 15 15 Average Capacity 20 | 7 9 15 15 15 30 35 32 15 15 15 15 15 15 15 15 15 15 15 15 15 15 15 15 Most Carried 35 | 7 14 15 15 15 26 29 35 15 15 15 15 15 15 15 15 15 15 15 15 15 15 15 13 Average Carried 17 | 4 8 14 14 14 21 26 29 14 14 12 14 15 13 14 14 14 15 14 14 15 14 15 11 Final Capacity 35 | 8 15 15 15 15 35 35 15 15 15 15 15 15 15 15 15 15 15 15 15 15 15 15 15 Final Carried 29 | 7 14 15 15 15 26 29 15 15 15 15 15 15 12 15 14 15 15 15 15 15 15 15 13 Class Distribution -------------------- 29% | Scavenger-Mutant 27% | Hauler-Mutant 24% | Mutant 4% | Wizard-Scout 3% | Hacker-Mutant 3% | Hacker-Scout Dominant Class ---------------- Mutant | -10/Materials Scavenger-Mutant | -10/Mines Scavenger-Mutant | -9/Materials Scavenger-Mutant | -9/Mines Hauler-Mutant | -9/Exiles Hauler-Mutant | -8/Mines Hauler-Mutant | -8/Materials Mutant | -8/Storage Mutant | -8/Recycling Scout | -6/Factory Scout | -6/DSF Scout | -6/Garrison Mutant | -5/Factory Mutant | -5/Extension Scavenger-Mutant | -5/Cetus Scavenger-Mutant | -5/Archives Wizard-Mutant | -5/Hub_04(d) Wizard-Scout | -4/Factory Hacker-Scout | -4/Armory Hacker-Scout | -3/Research Hacker-Scout | -3/DSF Hacker-Scout | -2/Research Hacker-Mutant | -1/Access Resources | -11 -10 -10 -9 -9 -9 -8 -8 -8 -8 -6 -6 -6 -5 -5 -5 -5 -5 -4 -4 -3 -3 -2 -1 ----------- Run | Scr Mat Min Mat Min Exi Min Mat Sto Rec Fac DSF Gar Fac Ext Cet Arc Hub Fac Arm Res DSF Res Acc Matter Collected 4951 | 296 263 61 907 90 350 121 793 . 14 . 11 35 382 626 135 162 . 71 120 . 20 349 145 Remotely 456 | 238 218 . . . . . . . . . . . . . . . . . . . . . . Salvage Created 5580 | 101 234 159 1939 167 . 240 1259 . . . . 73 124 180 64 481 . 112 135 . . 148 164 Parts 358 | 6 24 4 139 6 . 9 79 . . . . 8 3 5 3 30 . 10 19 . . 4 9 Haulers Intercepted 9 | . 1 . 5 . . . 1 . . . . . 1 . . . . . . . . 1 . Recyclers Shooed 11 | . 4 1 2 1 . 1 1 . . . . . . 1 . . . . . . . . . Parts Field Recycled . | . . . . . . . . . . . . . . . . . . . . . . . . Retrieved Matter . | . . . . . . . . . . . . . . . . . . . . . . . . Parts Self-Destructed . | . . . . . . . . . . . . . . . . . . . . . . . . Prevented . | . . . . . . . . . . . . . . . . . . . . . . . . Kills | -11 -10 -10 -9 -9 -9 -8 -8 -8 -8 -6 -6 -6 -5 -5 -5 -5 -5 -4 -4 -3 -3 -2 -1 ------- Run | Scr Mat Min Mat Min Exi Min Mat Sto Rec Fac DSF Gar Fac Ext Cet Arc Hub Fac Arm Res DSF Res Acc Combat Hostiles Destroyed 105 | . 8 5 33 3 . 4 19 . . . . 7 2 3 . . . 5 14 . . . 2 Melee 4 | . . . . . . . . . . . . . . . . . . 1 1 . . . 2 Guns 64 | . 8 2 26 3 . 4 19 . . . . . . 2 . . . . . . . . . Cannons 7 | . . 3 4 . . . . . . . . . . . . . . . . . . . . AOE 30 | . . . 3 . . . . . . . . 7 2 1 . . . 4 13 . . . . Classes Destroyed 16 | 2 4 2 3 . . 1 2 . . . . . . . . . . 1 1 . . . . Worker 9 | . . . 6 2 . . 1 . . . . . . . . . . . . . . . . Builder 9 | . . 1 3 1 . . 3 . . . . . . . . . . 1 . . . . . Tunneler 3 | 1 . . 1 . . . . . . . . . . . . . . 1 . . . . . Hauler 9 | . 1 . 5 . . . 1 . . . . . 1 . . . . . . . . 1 . Recycler 11 | 1 . . 4 1 . 1 4 . . . . . . . . . . . . . . . . Mechanic 1 | . . . . . . . 1 . . . . . . . . . . . . . . . . Operator 13 | . . . 4 . . . . . . . . . . . . 8 . . . . . 1 . Watcher 8 | . 1 . 2 . . . 2 . . . . . . 2 1 . . . . . . . . Swarmer 55 | . 7 2 9 3 . 1 7 . . . . 7 2 . . . . 4 13 . . . . Saboteur 1 | . . . . . . . . . . . . . . . . . . . 1 . . . . Grunt 33 | . 1 2 20 . . 2 6 . . . . . . 2 . . . . . . . . . Duelist 1 | . . . . . . 1 . . . . . . . . . . . . . . . . . Sentry 11 | . . . 4 . . . 5 . . . . . . 1 . . . . . . . . 1 Hunter 1 | . . . . . . . 1 . . . . . . . . . . . . . . . . Programmer 2 | . . . . . . . . . . . . . . . . . . 1 . . . . 1 Enhanced Grunt 2 | . . . . . . . . . . . . . . . . 2 . . . . . . . Assembled 1 | . . 1 . . . . . . . . . . . . . . . . . . . . . Butcher 1 | . . . . . . . . . . . . . . . 1 . . . . . . . . Best Kill Streak 13 | 1 3 2 6 6 . 3 8 . . . . 4 2 3 1 5 . 5 13 . . 2 2 Combat Bots Only 13 | . 3 2 5 2 . 2 6 . . . . 4 2 2 . . . 4 13 . . . 2 Max Kills in Single Turn 4 | 1 1 1 4 1 . 1 2 . . . . 3 2 1 1 1 . 3 4 . . 1 1 Gunslinging 1 | . . . . . . . 1 . . . . . . . . . . . . . . . . Exploded 4 | . . . 3 . . . . . . . . 3 2 1 . . . 2 4 . . . . Melee 1 | . . . . . . . . . . . . . . . . . . 1 1 . . . 1 Uniques/NPCs Destroyed . | . . . . . . . . . . . . . . . . . . . . . . . . Combat | -11 -10 -10 -9 -9 -9 -8 -8 -8 -8 -6 -6 -6 -5 -5 -5 -5 -5 -4 -4 -3 -3 -2 -1 -------- Run | Scr Mat Min Mat Min Exi Min Mat Sto Rec Fac DSF Gar Fac Ext Cet Arc Hub Fac Arm Res DSF Res Acc Damage Taken 8798 | . 353 132 1175 139 . 222 1906 206 . . 72 268 963 284 490 103 91 453 731 . 303 639 268 Core 873 | . 44 8 77 19 . 34 163 41 . . . 29 80 . 13 . . 23 191 . 84 67 . Absorbed by Shields 331 | . . . 34 . . . . . . . . 12 58 68 159 . . . . . . . . Core Remaining (%) 86 | 100 . 79 . . . 67 . . 62 . . 96 . . . . 90 . 81 . 93 95 100 Volleys Fired 433 | 13 42 25 138 17 . 11 95 1 . 1 . 6 31 30 10 . . 4 8 . . 1 . Largest 2 | 2 2 2 2 2 . 2 2 1 . 1 . 1 1 1 1 . . 1 1 . . 1 . Hottest 136 | 40 40 68 136 46 . 46 51 28 . 33 . 33 33 30 30 . . 30 30 . . 35 . Shots Fired 711 | 26 84 29 275 34 . 22 148 1 . 1 . 6 31 31 10 . . 4 8 . . 1 . Gun 609 | 26 84 8 252 34 . 22 148 1 . . . . 8 25 . . . . . . . 1 . Cannon 43 | . . 21 22 . . . . . . . . . . . . . . . . . . . . Launcher 59 | . . . 1 . . . . . . 1 . 6 23 6 10 . . 4 8 . . . . Special . | . . . . . . . . . . . . . . . . . . . . . . . . Kinetic 569 | 26 84 8 212 34 . 22 148 1 . . . . 8 25 . . . . . . . 1 . Thermal 83 | . . 21 62 . . . . . . . . . . . . . . . . . . . . Explosive 59 | . . . 1 . . . . . . 1 . 6 23 6 10 . . 4 8 . . . . Electromagnetic . | . . . . . . . . . . . . . . . . . . . . . . . . Robot Hit Streak 16 | 2 6 7 15 4 . 5 10 . . . . 1 2 8 14 . . 16 1 . . . . Robot Miss Streak 4 | 3 3 1 4 3 . 2 3 . . . . 2 4 3 . . . 1 2 . . 3 . Penetration Max 1 | . . . . . . . 1 . . . . . . . . . . . . . . . . Secondary Targets 7 | . 1 1 2 1 . . 2 . . . . . . . . . . . . . . . . Max Gunslinging Chain 1 | . 1 1 1 1 . . 1 . . . . . . . . . . . . . . . . Shots Hit Robots 456 | 14 43 10 185 21 . 14 100 . . . . 1 4 19 6 19 . 8 3 . . 2 7 Core Hits 273 | 4 20 7 78 8 . 8 46 . . . . 8 11 15 24 11 . 9 18 . . 2 4 Critical Kills . | . . . . . . . . . . . . . . . . . . . . . . . . Critical Parts Destroyed 2 | . . . . . . . 1 . . . . . . 1 . . . . . . . . . Critical Strikes 3 | . . . . . . . 1 . . . . . . 1 . 1 . . . . . . . Destroy 2 | . . . . . . . 1 . . . . . . 1 . . . . . . . . . Sever 1 | . . . . . . . . . . . . . . . . 1 . . . . . . . Melee Attacks 72 | . . . . . . . . . . . . . . . 5 23 4 17 9 . . 4 10 Impact 20 | . . . . . . . . . . . . . . . 5 2 . 7 6 . . . . Slashing 52 | . . . . . . . . . . . . . . . . 21 4 10 3 . . 4 10 Piercing . | . . . . . . . . . . . . . . . . . . . . . . . . Sneak Attacks 13 | . . . . . . . . . . . . . . . . 11 . 1 . . . 1 . Combat Hostiles . | . . . . . . . . . . . . . . . . . . . . . . . . Follow-up Attacks 2 | . . . . . . . . . . . . . . . . 1 . 1 . . . . . Damage Inflicted 12685 | 104 380 163 3131 352 . 226 1822 . . . . 615 518 550 627 1922 . 687 1034 . . 234 320 Guns 5910 | 104 366 47 2683 313 . 226 1820 . . . . . 49 302 . . . . . . . . . Cannons 329 | . . 83 246 . . . . . . . . . . . . . . . . . . . . Explosions 3549 | . . . 174 37 . . . . . . . 615 469 248 627 . . 386 993 . . . . Melee 2818 | . . . . . . . . . . . . . . . . 1922 . 301 41 . . 234 320 Ramming 79 | . 14 33 28 2 . . 2 . . . . . . . . . . . . . . . . Kinetic 5515 | 104 366 47 2288 313 . 226 1820 . . . . . 49 302 . . . . . . . . . Thermal 761 | . . 83 641 37 . . . . . . . . . . . . . . . . . . . Explosive 3512 | . . . 174 . . . . . . . . 615 469 248 627 . . 386 993 . . . . Electromagnetic . | . . . . . . . . . . . . . . . . . . . . . . . . Impact 167 | . . . . . . . . . . . . . . . . 126 . . 41 . . . . Slashing 2651 | . . . . . . . . . . . . . . . . 1796 . 301 . . . 234 320 Piercing . | . . . . . . . . . . . . . . . . . . . . . . . . Highest Corruption 8 | . . . . . . . 2 2 2 . . . . 8 8 8 . . 1 . . 3 . Average Corruption 5 | . . . . . . . 2 2 2 . . . . 8 8 4 . . 1 . . 1 . Corruption Purged 8 | . . . . . . . . . . . . . . . . 8 . . . . . . . Effects 31 | . . . . . . . . 1 . . . . . 14 9 6 . . 1 . . . . Message Errors 8 | . . . . . . . . . . . . . . 4 2 1 . . 1 . . . . Matter Fused 7 | . . . . . . . . . . . . . . 3 2 2 . . . . . . . Heat Flow Errors 4 | . . . . . . . . . . . . . . 2 2 . . . . . . . . Energy Discharges 4 | . . . . . . . . 1 . . . . . 2 . 1 . . . . . . . Parts Rejected 1 | . . . . . . . . . . . . . . . 1 . . . . . . . . Data Loss (minor) 5 | . . . . . . . . . . . . . . 2 1 2 . . . . . . . Data Loss (major) 1 | . . . . . . . . . . . . . . . 1 . . . . . . . . Misfires 1 | . . . . . . . . . . . . . . 1 . . . . . . . . . Overload Shots . | . . . . . . . . . . . . . . . . . . . . . . . . Overflow Damage 461 | . . . . . . . . . . . . 87 23 . . 292 . 48 11 . . . . Projectiles . | . . . . . . . . . . . . . . . . . . . . . . . . Explosions 157 | . . . . . . . . . . . . 87 23 . . . . 39 8 . . . . Melee 304 | . . . . . . . . . . . . . . . . 292 . 9 3 . . . . Knockbacks 2 | . . . 1 . . . . . . . . . . . . 1 . . . . . . . Impact 2 | . . . 1 . . . . . . . . . . . . 1 . . . . . . . Kinetic . | . . . . . . . . . . . . . . . . . . . . . . . . Secondary . | . . . . . . . . . . . . . . . . . . . . . . . . Self-Inflicted Damage 428 | . . . . 49 . . 1 . . . . 120 186 72 . . . . . . . . . Shots 15 | . . . . 1 . . . . . . . 4 7 3 . . . . . . . . . Rammed 12 | . 4 3 3 1 . . 1 . . . . . . . . . . . . . . . . Targets Rammed 13 | . 4 4 3 1 . . 1 . . . . . . . . . . . . . . . . Kicked . | . . . . . . . . . . . . . . . . . . . . . . . . Crushed 1 | . . 1 . . . . . . . . . . . . . . . . . . . . . Highest Temperature 372 | . 12 124 372 5 . 3 136 24 . 2 . 25 49 253 169 . 2 298 345 1 . 164 236 Average Temperature 85 | . 8 36 69 5 . 2 53 13 . 1 . 9 17 105 78 . 2 78 198 1 . 65 134 Received Heat Transfer 2454 | . 54 48 534 . . 63 810 135 . . . 18 309 65 116 . 27 76 127 . . 45 27 Effects 3 | . . . 1 . . . . . . . . . . . . . . . 2 . . . . Shutdowns 1 | . . . . . . . . . . . . . . . . . . . 1 . . . . Energy Bleed 1 | . . . . . . . . . . . . . . . . . . . 1 . . . . Damage (minor) 1 | . . . 1 . . . . . . . . . . . . . . . . . . . . Siege Activations . | . . . . . . . . . . . . . . . . . . . . . . . . Robots Corrupted . | . . . . . . . . . . . . . . . . . . . . . . . . Combat Hostiles . | . . . . . . . . . . . . . . . . . . . . . . . . Parts Fried 2 | . . . . . . . . . . . . . . . . . . . 2 . . . . Impact Corruptions 1 | . . . . . . . . . . . . . . . . . . . 1 . . . . Robots Melted . | . . . . . . . . . . . . . . . . . . . . . . . . Combat Hostiles . | . . . . . . . . . . . . . . . . . . . . . . . . Parts Melted 1 | . . . 1 . . . . . . . . . . . . . . . . . . . . Heat Transferred 1493 | . . 148 1295 50 . . . . . . . . . . . . . . . . . . . Parts Sabotaged 2 | . . . . . . . . . . . . . . . . . . . 2 . . . . Parts Stolen . | . . . . . . . . . . . . . . . . . . . . . . . . Parts Stripped . | . . . . . . . . . . . . . . . . . . . . . . . . Power Chain Reactions . | . . . . . . . . . . . . . . . . . . . . . . . . Missiles Intercepted . | . . . . . . . . . . . . . . . . . . . . . . . . Alert | -11 -10 -10 -9 -9 -9 -8 -8 -8 -8 -6 -6 -6 -5 -5 -5 -5 -5 -4 -4 -3 -3 -2 -1 ------- Run | Scr Mat Min Mat Min Exi Min Mat Sto Rec Fac DSF Gar Fac Ext Cet Arc Hub Fac Arm Res DSF Res Acc Peak Influence 935 | 10 292 122 508 303 . 65 255 119 286 935 654 740 673 420 401 357 154 298 429 173 129 283 280 Initial 928 | . 6 43 . 198 . . 25 74 46 928 654 490 388 258 187 136 124 25 15 173 129 63 145 Average 192 | 5 184 36 275 292 . 34 87 94 111 932 654 528 340 297 350 312 62 78 278 173 119 152 186 Maximum Alert Level 3 | . 1 . 2 1 . . 1 . 1 3 2 3 2 2 2 1 . 1 2 . . 1 1 Low Security (%) 54 | 100 59 100 20 1 . 100 87 100 81 . . . 28 . 2 6 100 89 32 100 100 73 74 Level 1 36 | . 40 . 74 98 . . 12 . 18 . . . 36 88 62 93 . 10 29 . . 26 25 Level 2 8 | . . . 5 . . . . . . . 100 92 35 11 35 . . . 38 . . . . Level 3 . | . . . . . . . . . . 100 . 7 . . . . . . . . . . . Level 4 . | . . . . . . . . . . . . . . . . . . . . . . . . Level 5 . | . . . . . . . . . . . . . . . . . . . . . . . . High Security . | . . . . . . . . . . . . . . . . . . . . . . . . Max Security . | . . . . . . . . . . . . . . . . . . . . . . . . Squads Dispatched 39 | . 2 1 8 . . . 3 2 . . 1 . 5 1 1 . 2 4 2 . 1 6 . Investigation 16 | . . 1 3 . . . 1 . . . . . 2 . 1 . 1 3 2 . . 2 . Extermination 1 | . . . . . . . . . . . . . . . . . . 1 . . . . . Reinforcement 19 | . 2 . 5 . . . 2 2 . . 1 . 3 1 . . 1 . . . 1 1 . Assault . | . . . . . . . . . . . . . . . . . . . . . . . . Garrison 3 | . . . . . . . . . . . . . . . . . . . . . . 3 . Intercept . | . . . . . . . . . . . . . . . . . . . . . . . . Construction Impeded 2 | . . . 1 . . . . . . . . . 1 . . . . . . . . . . Haulers Reinforced 1 | . . . . . . . . . . . . . 1 . . . . . . . . . . Active Scanning Responses . | . . . . . . . . . . . . . . . . . . . . . . . . Cargo Convoy Interrupts . | . . . . . . . . . . . . . . . . . . . . . . . . Stealth | -11 -10 -10 -9 -9 -9 -8 -8 -8 -8 -6 -6 -6 -5 -5 -5 -5 -5 -4 -4 -3 -3 -2 -1 --------- Run | Scr Mat Min Mat Min Exi Min Mat Sto Rec Fac DSF Gar Fac Ext Cet Arc Hub Fac Arm Res DSF Res Acc Distress Signals 20 | . 1 . 5 1 . . 3 . . . . . 2 2 1 . 1 . 1 . . 3 . Communications Jammed . | . . . . . . . . . . . . . . . . . . . . . . . . Distress Signals . | . . . . . . . . . . . . . . . . . . . . . . . . Times Spotted 324 | . 19 11 66 3 . 5 29 7 13 . 4 12 30 16 8 4 6 28 30 . 4 23 6 Peak Tracking Total 18 | . 4 3 6 3 . 3 6 5 5 . 4 8 8 3 5 . 7 13 12 . 3 18 3 Tactical Retreats 26 | . 1 1 2 . . 1 1 . . . . 1 7 1 . . 1 4 3 . 1 1 1 Traps | -11 -10 -10 -9 -9 -9 -8 -8 -8 -8 -6 -6 -6 -5 -5 -5 -5 -5 -4 -4 -3 -3 -2 -1 ------- Run | Scr Mat Min Mat Min Exi Min Mat Sto Rec Fac DSF Gar Fac Ext Cet Arc Hub Fac Arm Res DSF Res Acc Traps Triggered 13 | . . . . . . . 1 . . . . 2 2 5 . . . 1 2 . . . . Indirectly . | . . . . . . . . . . . . . . . . . . . . . . . . Trap Hack Attempts . | . . . . . . . . . . . . . . . . . . . . . . . . Triggered . | . . . . . . . . . . . . . . . . . . . . . . . . Disarmed . | . . . . . . . . . . . . . . . . . . . . . . . . Reprogrammed . | . . . . . . . . . . . . . . . . . . . . . . . . Reused . | . . . . . . . . . . . . . . . . . . . . . . . . Traps Extracted . | . . . . . . . . . . . . . . . . . . . . . . . . Installed . | . . . . . . . . . . . . . . . . . . . . . . . . Triggered . | . . . . . . . . . . . . . . . . . . . . . . . . Machines | -11 -10 -10 -9 -9 -9 -8 -8 -8 -8 -6 -6 -6 -5 -5 -5 -5 -5 -4 -4 -3 -3 -2 -1 ---------- Run | Scr Mat Min Mat Min Exi Min Mat Sto Rec Fac DSF Gar Fac Ext Cet Arc Hub Fac Arm Res DSF Res Acc Machines Disabled 16 | . . . . 1 . . . 1 . . . 1 5 1 . 3 . . 3 . . 1 . Max in Single Turn 1 | . . . . 1 . . . 1 . . . 1 1 . . . . . 1 . . 1 . Garrison Access 4 | . . . . . . . 1 . . . . . 2 . . . . . . . . . 1 Garrison Relay 1 | . . . . . . . . . . . . 1 . . . . . . . . . . . Machines Sabotaged . | . . . . . . . . . . . . . . . . . . . . . . . . Garrisons Compromised . | . . . . . . . . . . . . . . . . . . . . . . . . Overloaded Fab Kills . | . . . . . . . . . . . . . . . . . . . . . . . . Hacking | -11 -10 -10 -9 -9 -9 -8 -8 -8 -8 -6 -6 -6 -5 -5 -5 -5 -5 -4 -4 -3 -3 -2 -1 --------- Run | Scr Mat Min Mat Min Exi Min Mat Sto Rec Fac DSF Gar Fac Ext Cet Arc Hub Fac Arm Res DSF Res Acc Machines Accessed 65 | . 2 1 4 . 2 1 3 1 12 1 . . 11 2 1 . 3 5 7 1 . 5 3 Terminals 37 | . 2 1 3 . . 1 1 . 6 1 . . 4 2 1 . 3 1 5 1 . 3 2 Fabricators 10 | . . . . . . . . . . . . . 4 . . . . 3 2 . . 1 . Repair Stations 3 | . . . . . . . . 1 . . . . 1 . . . . 1 . . . . . Recycling Units 6 | . . . . . . . . . 6 . . . . . . . . . . . . . . Scanalyzers 2 | . . . 1 . . . 1 . . . . . . . . . . . . . . . . Garrison Access 5 | . . . . . . . 1 . . . . . 2 . . . . . . . . 1 1 Total Hacks 183 | . 6 3 11 . 2 1 13 2 26 2 . . 28 3 3 . 11 35 18 1 . 12 6 Successful 106 | . 3 1 3 . 2 . 9 . 12 1 . . 16 2 . . 8 31 9 1 . 5 3 Failed 76 | . 3 2 8 . . 1 4 2 13 1 . . 12 1 3 . 3 4 9 . . 7 3 Catastrophic 16 | . . 1 3 . . . 1 . 4 . . . 2 1 1 . . . 1 . . . 2 Database Lockouts 1 | . . . . . . . . . 1 . . . . . . . . . . . . . . Manual 100 | . 3 3 7 . 1 1 . 3 23 . . . 10 . 1 . 8 21 13 . . 3 3 Terminals 118 | . 6 3 10 . . 1 4 . 20 2 . . 12 3 3 . 11 17 12 1 . 8 5 Fabricators 33 | . . . . . . . . . . . . . 11 . . . . 13 6 . . 3 . Repair Stations 10 | . . . . . . . . 2 . . . . 3 . . . . 5 . . . . . Recycling Units 6 | . . . . . . . . . 6 . . . . . . . . . . . . . . Scanalyzers 9 | . . . 1 . . . 8 . . . . . . . . . . . . . . . . Garrison Access 5 | . . . . . . . 1 . . . . . 2 . . . . . . . . 1 1 Terminal Hacks 51 | . 3 1 2 . 2 . . . 6 1 . . 5 2 . . 7 13 5 1 . 2 1 Record 1 | . . . . . 1 . . . . . . . . . . . . . . . . . . Part Schematic 4 | . 2 . . . . . . . . . . . . . . . 2 . . . . . . Robot Schematic 2 | . . 1 . . . . . . . . . . . . . . 1 . . . . . . Prototype ID Bank 2 | . . . . . . . . . 2 . . . . . . . . . . . . . . Open Door 5 | . . . . . . . . . . . . . 1 2 . . . . 1 . . . 1 Open DSF 3 | . . . . . . . . . . 1 . . . . . . . . . 1 . 1 . Level Access Points 4 | . . . . . . . . . . . . . . . . . 1 1 1 . . 1 . Branch Access Points 3 | . . . . . . . . . . . . . 1 . . . . 1 1 . . . . Machine Index 1 | . . . . . . . . . . . . . . . . . . 1 . . . . . Terminal Index 1 | . . . . . . . . . . . . . . . . . . 1 . . . . . Alert Level 1 | . . . 1 . . . . . . . . . . . . . . . . . . . . Unreport Threat 10 | . . . 1 . . . . . 3 . . . 2 . . . 1 2 1 . . . . Dispatch Records 2 | . . . . . . . . . 1 . . . . . . . . 1 . . . . . Security Status 1 | . . . . . . . . . . . . . . . . . . 1 . . . . . Transport Status 1 | . . . . . . . . . . . . . . . . . . 1 . . . . . Reinforcement Status 1 | . . . . . . . . . . . . . . . . . . 1 . . . . . Recall Investigation 2 | . . . . . . . . . . . . . . . . . 1 1 . . . . . Hauler Manifests 1 | . . . . . . . . . . . . . . . . . . 1 . . . . . Zone Layout 5 | . 1 . . . . . . . . . . . 1 . . . 1 1 1 . . . . EX-Prototype ID Bank 1 | . . . . . 1 . . . . . . . . . . . . . . . . . . Fabricator Hacks 12 | . . . . . . . . . . . . . 3 . . . . 7 1 . . 1 . Network Status 2 | . . . . . . . . . . . . . 1 . . . . 1 . . . . . Load Schematic 6 | . . . . . . . . . . . . . 1 . . . . 3 1 . . 1 . Build 4 | . . . . . . . . . . . . . 1 . . . . 3 . . . . . Repair Station Hacks 6 | . . . . . . . . . . . . . 2 . . . . 4 . . . . . Scan Component 3 | . . . . . . . . . . . . . 1 . . . . 2 . . . . . Repair 3 | . . . . . . . . . . . . . 1 . . . . 2 . . . . . Recycling Unit Hacks . | . . . . . . . . . . . . . . . . . . . . . . . . Scanalyzer 8 | . . . . . . . 8 . . . . . . . . . . . . . . . . Insert Component 4 | . . . . . . . 4 . . . . . . . . . . . . . . . . Analyze 4 | . . . . . . . 4 . . . . . . . . . . . . . . . . Garrison Access Hacks 5 | . . . . . . . 1 . . . . . 2 . . . . . . . . 1 1 Unlock Access 1 | . . . . . . . . . . . . . . . . . . . . . . 1 . Seal Access 4 | . . . . . . . 1 . . . . . 2 . . . . . . . . . 1 Unauthorized Hacks 24 | . . . 1 . . . . . 6 . . . 4 . . . 1 7 3 . . 1 1 Terminals 6 | . . . . . . . . . . . . . . . . . 1 3 1 . . . 1 Assimilate 1 | . . . . . . . . . . . . . . . . . . 1 . . . . . Botnet 2 | . . . . . . . . . . . . . . . . . . 1 . . . . 1 Detonate 1 | . . . . . . . . . . . . . . . . . 1 . . . . . . Disrupt 1 | . . . . . . . . . . . . . . . . . . . 1 . . . . Operators 1 | . . . . . . . . . . . . . . . . . . 1 . . . . . Fabricators 11 | . . . . . . . . . . . . . 4 . . . . 4 2 . . 1 . Prioritize 3 | . . . . . . . . . . . . . . . . . . 1 1 . . 1 . Liberate 1 | . . . . . . . . . . . . . 1 . . . . . . . . . . Fabnet 7 | . . . . . . . . . . . . . 3 . . . . 3 1 . . . . Repair Stations . | . . . . . . . . . . . . . . . . . . . . . . . . Recycling Units 6 | . . . . . . . . . 6 . . . . . . . . . . . . . . Tunnel 6 | . . . . . . . . . 6 . . . . . . . . . . . . . . Scanalyzers 1 | . . . 1 . . . . . . . . . . . . . . . . . . . . Extract 1 | . . . 1 . . . . . . . . . . . . . . . . . . . . Garrison Access . | . . . . . . . . . . . . . . . . . . . . . . . . Data Cores Recovered . | . . . . . . . . . . . . . . . . . . . . . . . . Used . | . . . . . . . . . . . . . . . . . . . . . . . . Hacking Detections 44 | . 2 1 3 . . 1 1 1 5 1 . . 8 1 1 . 3 5 5 . . 4 2 Full Trace Events 21 | . . 1 3 . . . 1 . 5 . . . 2 . 1 . 1 3 2 . . 2 . Feedback Events 1 | . . . . . . . . . . . . . . . . . . . . . . 1 . Hackware Fried 1 | . . . . . . . . . . . . . . . . . . . . . . 1 . Feedback Blocked . | . . . . . . . . . . . . . . . . . . . . . . . . Robot Schematics Acquired 2 | . . 1 . . . . . . . . . . . . . . 1 . . . . . . Robots Built 2 | . . . . . . . . . . . . . . . . . . 2 . . . . . Authchips . | . . . . . . . . . . . . . . . . . . . . . . . . Time 123 | . . . . . . . . . . . . . 81 . . . . 42 . . . . . Total Robot Build Rating 12 | . . . . . . . . . . . . . . . . . . 12 . . . . . Part Schematics Acquired 13 | . 2 . 5 . . . 4 . . . . . . . . . 2 . . . . . . Parts Built 2 | . . . . . . . . . . . . . . . . . . 2 . . . . . Authchips 1 | . . . . . . . . . . . . . . . . . . 1 . . . . . Time 228 | . . . . . . . . . . . . . . . . . . 228 . . . . . Total Part Build Rating 10 | . . . . . . . . . . . . . . . . . . 10 . . . . . Parts Repaired 3 | . . . . . . . . . . . . . 1 . . . . 2 . . . . . Time 88 | . . . . . . . . . . . . . 16 . . . . 72 . . . . . Parts Recycled . | . . . . . . . . . . . . . . . . . . . . . . . . Recycled Matter . | . . . . . . . . . . . . . . . . . . . . . . . . Retrieved Matter . | . . . . . . . . . . . . . . . . . . . . . . . . Retrieved Components . | . . . . . . . . . . . . . . . . . . . . . . . . Parts Scanalyzed 4 | . . . . . . . 4 . . . . . . . . . . . . . . . . Part Schematics Acquired 4 | . . . . . . . 4 . . . . . . . . . . . . . . . . Parts Damaged . | . . . . . . . . . . . . . . . . . . . . . . . . Bothacking | -11 -10 -10 -9 -9 -9 -8 -8 -8 -8 -6 -6 -6 -5 -5 -5 -5 -5 -4 -4 -3 -3 -2 -1 ------------ Run | Scr Mat Min Mat Min Exi Min Mat Sto Rec Fac DSF Gar Fac Ext Cet Arc Hub Fac Arm Res DSF Res Acc Used RIF Installer 1 | . . . . . . . . . . . . 1 . . . . . . . . . . . Robots Hacked 1 | . . . . . . . . . . . . . . . . . . . 1 . . . . Non-combat . | . . . . . . . . . . . . . . . . . . . . . . . . Combat 1 | . . . . . . . . . . . . . . . . . . . 1 . . . . Robot Hacks Applied . | . . . . . . . . . . . . . . . . . . . . . . . . Relay Couplers Released 4 | . . . . . . . . . . . . 4 . . . . . . . . . . . Machine Destruction 4 | . . . . . . . . . . . . 4 . . . . . . . . . . . Attached 1 | . . . . . . . . . . . . 1 . . . . . . . . . . . Fabnet Peak Effective % 11 | . . . . . . . . . . . . . . . . . . 6 6 11 11 3 . Autooverrided 1 | . . . . . . . . . . . . . . . . . . . 1 . . . . Robots Rewired 10 | . . . . . . . . . . . . . . 10 . . . . . . . . . Allies Hacked . | . . . . . . . . . . . . . . . . . . . . . . . . Hacks Repelled . | . . . . . . . . . . . . . . . . . . . . . . . . Allies | -11 -10 -10 -9 -9 -9 -8 -8 -8 -8 -6 -6 -6 -5 -5 -5 -5 -5 -4 -4 -3 -3 -2 -1 -------- Run | Scr Mat Min Mat Min Exi Min Mat Sto Rec Fac DSF Gar Fac Ext Cet Arc Hub Fac Arm Res DSF Res Acc Total Allies 27 | . . 3 . . . . . . . . . . 3 12 5 . . 3 1 . . . . Largest Group 6 | . . 3 1 . . . . . . . . . 3 6 5 4 . 3 . . . . . Highest-Rated Group 453 | . . 40 16 . . . . . . . . . 90 320 453 358 . 118 . . . . . Highest-Rated Ally 159 | . . 16 16 . . . . . . . . . 30 159 152 149 . 54 . . . . . Total Orders . | . . . . . . . . . . . . . . . . . . . . . . . . Ally Attacks 182 | . . 23 8 . . . . . . . . . 16 77 23 26 . 7 2 . . . . Total Damage 4642 | . . 194 124 . . . . . . . . . 488 2032 783 862 . 86 73 . . . . Kills 31 | . . 4 1 . . . . . . . . . 2 13 7 4 . . . . . . . Allies Corrupted . | . . . . . . . . . . . . . . . . . . . . . . . . Allies Melted . | . . . . . . . . . . . . . . . . . . . . . . . . Intel | -11 -10 -10 -9 -9 -9 -8 -8 -8 -8 -6 -6 -6 -5 -5 -5 -5 -5 -4 -4 -3 -3 -2 -1 ------- Run | Scr Mat Min Mat Min Exi Min Mat Sto Rec Fac DSF Gar Fac Ext Cet Arc Hub Fac Arm Res DSF Res Acc Robot Analysis Total . | . . . . . . . . . . . . . . . . . . . . . . . . Derelict Logs Recovered 3 | . . 3 . . . . . . . . . . . . . . . . . . . . . Drone Launches . | . . . . . . . . . . . . . . . . . . . . . . . . Drone Recoveries . | . . . . . . . . . . . . . . . . . . . . . . . . Exploration | -11 -10 -10 -9 -9 -9 -8 -8 -8 -8 -6 -6 -6 -5 -5 -5 -5 -5 -4 -4 -3 -3 -2 -1 ------------- Run | Scr Mat Min Mat Min Exi Min Mat Sto Rec Fac DSF Gar Fac Ext Cet Arc Hub Fac Arm Res DSF Res Acc Turns Passed 11249 | 141 544 1212 1595 225 1774 645 1228 83 253 61 41 256 438 867 285 398 118 565 168 6 64 127 155 Spaces Moved 7598 | 60 241 698 630 107 594 153 376 152 502 140 78 220 731 700 140 178 252 538 382 27 140 333 226 Core 8 | 5 . . 1 . . . . . . . . . . 2 . . . . . . . . . Treads 2431 | 55 241 698 585 107 594 146 5 . . . . . . . . . . . . . . . . Legs 45 | . . . 44 . . . 1 . . . . . . . . . . . . . . . . Wheels 253 | . . . . . . 7 246 . . . . . . . . . . . . . . . . Hover . | . . . . . . . . . . . . . . . . . . . . . . . . Flight 4861 | . . . . . . . 124 152 502 140 78 220 731 698 140 178 252 538 382 27 140 333 226 Fastest Speed 20 | 50 160 160 160 160 160 295 50 50 50 34 34 40 40 40 40 40 40 22 22 22 20 20 33 Average Speed 103 | 150 160 160 173 160 295 395 216 50 50 34 35 40 40 44 62 40 40 28 22 22 20 27 35 Slowest Speed 1590 | 160 160 160 600 160 400 400 1590 50 50 34 40 40 40 1000 126 40 40 119 102 22 22 110 37 Overloaded Moves . | . . . . . . . . . . . . . . . . . . . . . . . . Propulsion Burnouts . | . . . . . . . . . . . . . . . . . . . . . . . . Robots Hopped 47 | . . . . . . . . 6 8 1 2 2 5 6 . . . 1 3 . . 13 . Cave-ins Triggered . | . . . . . . . . . . . . . . . . . . . . . . . . Exploration Rate (%) 44 | 6 48 97 54 27 71 22 36 31 99 7 79 45 24 76 63 78 25 20 39 1 93 17 8 Regions Visited 23 Branch Regions 11 Pre-discovered Areas 8 | . . 1 . . 1 . . . 6 . . . . . . . . . . . . . . Known Exits Taken 7 | . . . . . . . . . . 1 . . 1 . . . 1 1 1 1 . 1 . Unknown Exits Taken 13 | 1 1 1 1 1 1 1 1 1 1 . . . . 1 1 1 . . . . . . . Scrap Searched 2 | . . 2 . . . . . . . . . . . . . . . . . . . . . Spaces Dug 126 | . . . . . . . . . . 8 . 2 101 . 1 . 2 5 4 . . . 3 Terrain Destroyed 392 | . . . 12 14 . . . . . 8 . 38 206 33 53 . 2 19 4 . . . 3 Melee 15 | . . . . . . . . . . . . . . . 1 . 2 5 4 . . . 3 Projectile . | . . . . . . . . . . . . . . . . . . . . . . . . AOE 377 | . . . 12 14 . . . . . 8 . 38 206 33 52 . . 14 . . . . . Terrain Rammed . | . . . . . . . . . . . . . . . . . . . . . . . . Walls Destroyed . | . . . . . . . . . . . . . . . . . . . . . . . . Machines Disabled . | . . . . . . . . . . . . . . . . . . . . . . . . Actions | -11 -10 -10 -9 -9 -9 -8 -8 -8 -8 -6 -6 -6 -5 -5 -5 -5 -5 -4 -4 -3 -3 -2 -1 --------- Run | Scr Mat Min Mat Min Exi Min Mat Sto Rec Fac DSF Gar Fac Ext Cet Arc Hub Fac Arm Res DSF Res Acc Total 10164 | 86 331 765 867 128 615 172 638 153 495 150 92 378 843 1222 316 471 262 918 434 26 174 346 282 Wait 1472 | . 26 28 16 . . 4 114 . . . . 148 59 270 156 245 6 336 13 . 11 4 36 Move 7486 | 59 240 697 629 106 593 152 375 140 485 137 73 215 720 689 139 177 251 535 376 26 139 308 225 Hop 41 | . . . . . . . . 5 8 1 2 2 5 4 . . . 1 2 . . 11 . Pick Up 112 | 7 6 3 19 2 18 2 19 3 1 4 5 . 6 2 . 3 . 3 1 . 6 . 2 Fast Attach 99 | 7 3 1 16 . 1 2 10 1 . . 1 1 3 3 2 11 . 8 8 . 7 8 6 Attach 31 | . . . 4 . . . 5 . . 4 1 . 6 . 2 1 . 2 1 . 4 . 1 Detach 8 | . 2 . . . . 1 2 . . . . . . . 1 2 . . . . . . . Swap 53 | . 3 3 12 . . . 9 . . 2 2 . 4 7 . 1 1 6 1 . . 2 . Drop 122 | . 5 4 30 2 3 . 8 3 1 1 8 . 9 7 1 10 . 9 4 . 7 8 2 Fire 433 | 13 42 25 138 17 . 11 95 1 . 1 . 6 31 30 10 . . 4 8 . . 1 . Melee 67 | . . . . . . . . . . . . . . . 5 21 4 14 9 . . 4 10 Ram 1 | . . . . . . . 1 . . . . . . . . . . . . . . . . Kick . | . . . . . . . . . . . . . . . . . . . . . . . . Crush 12 | . 4 4 3 1 . . . . . . . . . . . . . . . . . . . Escape Stasis 104 | . . . . . . . . . . . . 6 . 87 . . . . 11 . . . . Rewire 123 | . . . . . . . . . . . . . . 123 . . . . . . . . . Trap . | . . . . . . . . . . . . . . . . . . . . . . . . Miscellaneous . | . . . . . . . . . . . . . . . . . . . . . . . . Route ------- -11/Scrapyard -10/Materials (discovered 2 exits: *Mat / *Min) -10/Mines (discovered 2 exits: *Mat x2) -9/Materials (discovered 3 exits: *Mat / [*Min x2]) -9/Mines -9/Exiles (discovered 2 exits: *Min x2) -8/Mines -8/Materials -8/Storage -8/Recycling -6/Factory -6/DSF -6/Garrison -5/Factory (discovered 5 exits: *Fac / Upp x2 / *Ext x2) -5/Extension (discovered 2 exits: *Fac / *Cet) -5/Cetus -5/Archives (discovered 2 exits: *Fac / *Hub) -5/Hub_04(d) (discovered 4 exits: *Fac x4) -4/Factory (discovered 7 exits: Res x4 / Upp x2 / *Arm) -4/Armory (discovered 2 exits: *Res x2) -3/Research -3/DSF -2/Research (discovered 4 exits: *Acc x3 / Gar) -1/Access To Epsilon Eridani History --------- Turn | Location | Event 2 | -11/Scrapyard | Met Revision 17 7 | -11/Scrapyard | Discovered new exit (range 13) 142 | -11/Scrapyard | Entered Materials 313 | -10/Materials | Build established: Mutant 432 | -10/Materials | Discovered new exit (range 16) 569 | -10/Materials | Discovered new exit (range 7) 686 | -10/Materials | Entered Mines 739 | -10/Mines | Discovered new exit (range 6) 779 | -10/Mines | Discovered new exit (range 7) 797 | -10/Mines | Assisted by bots powering up and referring to "LRC-V3" 978 | -10/Mines | Learned Materials trap positions 980 | -10/Mines | Build established: Scavenger-Mutant 1090 | -10/Mines | Excavation squad dispatched 1090 | -10/Mines | A large section of the Mines collapsed 1343 | -10/Mines | Learned Materials interactive machine intel 1377 | -10/Mines | Build established: Mutant 1474 | -10/Mines | Learned location of Zion (-7) 1648 | -10/Mines | Joined a pair of Derelicts in attacking an 0b10 outpost 1898 | -10/Mines | Entered Materials 1898 | -9/Materials | Accompanied by 1 ally 1898 | -9/Materials | Evolved 2 slots: Propulsion x1, Utility x1 1899 | -9/Materials | Loaded intel: 12 trap records 1900 | -9/Materials | Loaded intel: 18 interactive machine locations 1959 | -9/Materials | Build established: Scavenger-Mutant 2410 | -9/Materials | Discovered new exit (range 10) 2476 | -9/Materials | Discovered new exit (range 11) 2858 | -9/Materials | Discovered new exit (range 10) 3085 | -9/Materials | Build established: Mutant 3399 | -9/Materials | Build established: Scavenger-Mutant 3493 | -9/Materials | Entered Mines 3494 | -9/Mines | Met a Derelict bent on vengeance 3710 | -9/Mines | Deemed a non-threat by the Exiles lab entrance 3711 | -9/Mines | Discovered new exit (range 5) 3718 | -9/Mines | Entered Exiles 3739 | -9/Exiles | Discovered new exit (range 17) 3762 | -9/Exiles | Met 8R-AWN 3784 | -9/Exiles | Met EX-HEX 3872 | -9/Exiles | Met EX-DEC 3933 | -9/Exiles | Met EX-BIN 3958 | -9/Exiles | Aligned with FarCom system 3960 | -9/Exiles | Given EX-Vault access code 3997 | -9/Exiles | Opened EX-Vault 4048 | -9/Exiles | Warned to stay clear of 0b10 Research branches 4440 | -9/Exiles | Build established: Hauler-Mutant 4561 | -9/Exiles | Found Flying Fortress v7 4983 | -9/Exiles | Discovered new exit (range 10) 5492 | -9/Exiles | Left Exiles lab with Flying Fortress v7 5492 | -9/Exiles | Entered Mines 6083 | -8/Mines | Discovered new exit (range 5) 6137 | -8/Mines | Entered Materials 6137 | -8/Materials | Evolved 2 slots: Propulsion x1, Utility x1 6215 | -8/Materials | Discovered new exit (range 11) 7024 | -8/Materials | Lost 3 parts (1n1u1w) 7298 | -8/Materials | Lost 9 parts (1p3n4u1w) 7365 | -8/Materials | Entered Storage 7446 | -8/Storage | Used back door to open Recycling access 7446 | -8/Storage | Discovered new exit (range 5) 7448 | -8/Storage | Entered Recycling 7484 | -8/Recycling | Spotter reported a threat 7487 | -8/Recycling | Spotter reported a threat 7492 | -8/Recycling | Spotter reported a threat 7508 | -8/Recycling | Spotter reported a threat 7511 | -8/Recycling | Spotter reported a threat 7537 | -8/Recycling | Spotter reported a threat 7538 | -8/Recycling | Spotter reported a threat 7544 | -8/Recycling | Spotter reported a threat 7561 | -8/Recycling | Spotter reported a threat 7563 | -8/Recycling | Spotter reported a threat 7585 | -8/Recycling | Spotter reported a threat 7589 | -8/Recycling | Build established: Mutant 7598 | -8/Recycling | Spotter reported a threat 7633 | -8/Recycling | Spotter reported a threat 7635 | -8/Recycling | Spotter reported a threat 7638 | -8/Recycling | Spotter reported a threat 7663 | -8/Recycling | Spotter reported a threat 7677 | -8/Recycling | Spotter reported a threat 7688 | -8/Recycling | Spotter reported a threat 7698 | -8/Recycling | Discovered new exit (range 7) 7701 | -8/Recycling | Entered Factory 7701 | -6/Factory | Evolved 4 slots: Propulsion x2, Utility x2 7747 | -6/Factory | Identified exit to DSF 7762 | -6/Factory | Entered DSF 7783 | -6/DSF | Additional patrols routed to DSF 7797 | -6/DSF | Discovered new exit (range 14) 7803 | -6/DSF | Entered Garrison 7805 | -6/Garrison | Installed Relay Interface Framework 7962 | -6/Garrison | Triggered checkpoint 8015 | -6/Garrison | Discovered new exit (range 12) 8034 | -6/Garrison | Triggered checkpoint 8059 | -6/Garrison | Entered Factory 8059 | -5/Factory | Evolved 2 slots: Power x1, Utility x1 8150 | -5/Factory | Repaired Mni. Grenade Launcher 8230 | -5/Factory | Identified exit to Upper Caves 8230 | -5/Factory | Identified exit to Extension 8277 | -5/Factory | Found Hvy. Insulated Plating 8287 | -5/Factory | Found Hvy. Insulated Plating 8392 | -5/Factory | Discovered new exit (range 18) 8497 | -5/Factory | Entered Extension 8719 | -5/Extension | Rescued A7 9008 | -5/Extension | Spotted B-75 Beast 9110 | -5/Extension | Build established: Commander-Mutant 9122 | -5/Extension | Allies destroyed B-75 Beast 9123 | -5/Extension | Spotted B-75 Beast 9149 | -5/Extension | Allies destroyed B-75 Beast 9218 | -5/Extension | Discovered new exit (range 18) 9218 | -5/Extension | Discovered new exit (range 18) 9288 | -5/Extension | Rescued a captive Derelict 9364 | -5/Extension | Entered Cetus 9364 | -5/Cetus | Accompanied by 5 allies (A7) 9369 | -5/Cetus | Acquired a Cetus Manufacturing Module code from A7 9371 | -5/Cetus | Spotted Cetus Guard 9371 | -5/Cetus | Spotted Cetus Guard 9374 | -5/Cetus | Spotted Cetus Guard 9374 | -5/Cetus | Spotted Cetus Guard 9382 | -5/Cetus | Allies destroyed Cetus Guard 9396 | -5/Cetus | Allies destroyed Cetus Guard 9403 | -5/Cetus | Allies destroyed Cetus Guard 9405 | -5/Cetus | Allies destroyed Cetus Guard 9445 | -5/Cetus | Build established: Scavenger-Mutant 9477 | -5/Cetus | Escorted A7 to Cetus Mainframe 9483 | -5/Cetus | Started Cetus Manufacturing Module 9488 | -5/Cetus | Discovered new exit (range 17) 9508 | -5/Cetus | Manufactured an Enhanced Grunt 9533 | -5/Cetus | Manufactured an Enhanced Grunt 9558 | -5/Cetus | Manufactured an Enhanced Grunt 9583 | -5/Cetus | Manufactured an Enhanced Grunt 9608 | -5/Cetus | Manufactured an Enhanced Grunt 9649 | -5/Cetus | Entered Archives 9649 | -5/Archives | Accompanied by 4 allies (A7) 9654 | -5/Archives | Received a hacking code to weaken MAIN.C 9862 | -5/Archives | Discovered new exit (range 16) 9996 | -5/Archives | Discovered new exit (range 13) 10047 | -5/Archives | Entered Hub_04(d) 10052 | -5/Hub_04(d) | Identified exit to Factory 10165 | -5/Hub_04(d) | Entered Factory 10165 | -4/Factory | Evolved 2 slots: Propulsion x1, Utility x1 10272 | -4/Factory | Repaired Field Propulsion Drive 10318 | -4/Factory | Repaired Exp. Heat Sink 10428 | -4/Factory | Spotted B-86 Titan 10481 | -4/Factory | Fabricated Biomechanical Wings (x1) 10500 | -4/Factory | Identified exit to Upper Caves 10500 | -4/Factory | Identified exit to Armory 10500 | -4/Factory | Identified exit to Research 10530 | -4/Factory | Fabricated P-70 Sage? 10555 | -4/Factory | Spotted B-86 Titan 10720 | -4/Factory | Fabricated Exp. Propulsion Shielding (x1) 10730 | -4/Factory | Entered Armory 10780 | -4/Armory | Spotted B-86 Titan 10827 | -4/Armory | Destroyed 13 combat bots 10898 | -4/Armory | Entered Research 10898 | -3/Research | Evolved 2 slots: Propulsion x1, Utility x1 10899 | -3/Research | Identified exit to DSF 10904 | -3/Research | Entered DSF 10934 | -3/DSF | Additional patrols routed to DSF 10954 | -3/DSF | Discovered new exit (range 21) 10968 | -3/DSF | Entered Research 10968 | -2/Research | Evolved 2 slots: Weapon x2 10970 | -2/Research | Adv. Hacking Suite fried by hacking feedback 11001 | -2/Research | Lost 6 parts (1p1n2u2w) 11042 | -2/Research | Identified exit to Access 11047 | -2/Research | Identified exit to Garrison 11074 | -2/Research | Build established: Hacker-Scout 11095 | -2/Research | Entered Access 11095 | -1/Access | Evolved 2 slots: Propulsion x2 11123 | -1/Access | Lost 4 parts (2p1n1u) 11124 | -1/Access | Spotted B-99 Colossus 11129 | -1/Access | Found Prototype Slashing Weapon 11129 | -1/Access | Identified Vibroblade 11248 | -1/Access | Discovered new exit (range 5) 11250 | *** | Escaped! Last Messages --------------- 11212_ P-80 Master unfolds itself. 11213_ P-80 Master destroyed. 11216_ Acquired Lgt. Particle Reactor. 11217_ Acquired 10 matter. 11218_ Acquired Prototype Energy Gun. 11218_ Identified Gamma Rifle. 11220_ Acquired Unknown Storage. 11220_ Identified Sml. Battery. 11222_ Dropped Sml. Battery. 11222_ Acquired Adv. Heat Sink. 11224_ Acquired 30 matter. 11226_ Acquired Com. Matter Pod. 11227_ Acquired 85 matter. 11228_ Acquired Adv. Heat Sink. 11238_ Acquired Rnf. Quantum Reactor. 11247_ Connecting with Terminal... >>Open(Door) Sealed Barrier opened. 11248_ The Access Shell folds into the floor. 11248_ EXIT=FOUND Map ----- +----------------------------------------------------+ | ?????????????????????????????????????????????????? | | ?????????????????????????????????????????????????? | | ?????????????????????????????????????????????????? | | ?????????????????????????????????????????????????? | | ?????????????????????????????????????????????????? | | ?????????????????????????????????????????????????? | | ?????????????????????????????????????????????????? | | ?????????????????????????????????????????????????? | | ?????????????????????????????????????????????????? | | ?????????????????????????????????????????????????? | | ?????????????????????????????????????????????????? | | ?????????????????????????????????????????????????? | | ?????????????????????????????????????????????????? | | ?????????????????????????????????????????????????? | | #+################???BB????BB????????????????????? | | # ?+ #???BB????BB????????????????????? | | # #?# #???????????????????????????????? | | # ### h #???????????????????????????????? | | # #???????????????????????????????? | | # """""#???????????????????????????????? | | ! # """""#?#""""""""""#??????????????????? | | =%!%+" """""#?# #??????????????????? | | = # """""#?# #??????????????????? | | !# """""#?# #??????????????????? | | ### """""??# "" #??????????????????? | | #?# #?# "@ #??????????????????? | | #?# #?# #??????????????????? | | %#?##############?# #??????????????????? | | #??########??????# #??????????????????? | | #?? ?????## ##?????????????????? | | #? #???# #?????????????????? | | #? """"" #???##"" ##?????????????????? | | # ""Y"" #????#"" #??????????????????? | | # #????#"" #??????????????????? | | + #????#T #??????????????????? | | # #????#"" #??????????????????? | | #############????#"" #??????????????????? | | ##### #########"" ###????????????????? | | #?????????? | | k +?????????? | | ##### ########################## #?????????? | | #?####+####????????????????????????????????????? | | #?# #????????????????????????????????????? | | #?# #????????????????????????????????????? | | #?# "" #????????????????????????????????????? | | #?#= """ #????????????????????????????????????? | | #?# "F** #????????????????????????????????????? | | ?# """* #????????????????????????????????????? | | ?#! """ #????????????????????????????????????? | | ?# """ #????????????????????????????????????? | +----------------------------------------------------+ Best States ------------- Heat Dissipation 71 Energy Generation 43 Energy Capacity 860 Matter Stores 450 Matter Capacity 450 Sight Range 22 Terrain Scan Density 10 Armor Coverage 1050 Resistance: TH 30 Resistance: EM 30 Propulsion Shielding 90 Evasion (%) 76 Melee Accuracy 16 Recoil Reduction 3 Offensive Hacking 50 Defensive Hacking 12 Relay Coupler Types 1 Relay Coupler Value 34 Authchip Count 1 Item Schematics ----------------- Huge Storage Unit | -10/Materials | Hacked Hcp. Storage Unit | -10/Materials | Hacked EMP Blaster | -9/Materials | Extracted Heat Sink | -9/Materials | Extracted Cooling System | -9/Materials | Extracted Med. Battery | -9/Materials | Extracted Utility Shielding | -9/Materials | Extracted Mni. Grenade Launcher | -8/Materials | Scanalyzed Hacking Suite | -8/Materials | Scanalyzed Humpback | -8/Materials | Scanalyzed Hrd. Light Armor Plating | -8/Materials | Scanalyzed Biomechanical Wings | -5/Hub_04(d) | Hacked Exp. Propulsion Shielding | -5/Hub_04(d) | Hacked Robot Schematics ------------------ O-16 Technician | -10/Mines | Hacked P-70 Sage | -5/Hub_04(d) | Hacked Fabricated ------------ Biomechanical Wings | x1 | -4/Factory | Authchip P-70 Sage | x2 | -4/Factory Exp. Propulsion Shielding | x1 | -4/Factory Alien Tech Used ----------------- None Achievements -------------- None Challenges ------------ None Game ------ Seed FireAbsorptionProtection Manual? 0 Play Time 02:02:15 Cumulative 438.2 hours Start 2022.01.15 @ 19:05:57 End 2022.01.19 @ 18:54:13 Sessions 5 Manual Loads 0 Difficulty Rogue Special Mode None Game No. 420 Rogue 205 Adventurer 112 Explorer 103 Win Type 0 Total 30 Types 22/0/5/2/0/0/0/1/0 Lore% 85 Gallery% 89 Achievement% 80 Wizard Run 0 Options --------- ASCII 0 Keyboard 0 Movement Numpad Keybinds 1 Fullscreen 2 Font 18/TerminusBold Map View 76x50 Tactical HUD 1 Map Filters NONE Filters NONE Steam 1 RUN: 09b6eb7b-03a5-45cb-b95c-04ce9fac64f8